[Event "Early-Titled-Tuesday-Blitz-April-23-2024"]
[Site "Chess.com"]
[Date "2024.04.23"]
[Round "2"]
[White "RedFirePanda"]
[Black "JiiHart"]
[Result "0-1"]
[WhiteElo "2468"]
[BlackElo "2182"]
[TimeControl "180+1"]
[EndTime "8:18:58 PDT"]
[Termination "JiiHart won by resignation"]

1. d4 {[%clk 0:03:00.9]} 1... d5 {[%clk 0:02:58.9]} 2. Bf4 {[%clk 0:03:00.1]}
2... Bf5 {[%clk 0:02:57.9]} 3. Nf3 {[%clk 0:02:57.6]} 3... Nf6 {[%clk 0:02:57]}
4. h3 {[%clk 0:02:54.5]} 4... e6 {[%clk 0:02:55.6]} 5. e3 {[%clk 0:02:52.7]}
5... c5 {[%clk 0:02:53.4]} 6. c3 {[%clk 0:02:50.9]} 6... Nc6 {[%clk 0:02:51.9]}
7. Bd3 {[%clk 0:02:45.9]} 7... Qb6 {[%clk 0:02:40.9]} 8. Bxf5 {[%clk 0:02:27.9]}
8... exf5 {[%clk 0:02:35]} 9. Qc2 {[%clk 0:02:22.5]} 9... Ne4 {[%clk 0:02:26.5]}
10. Nbd2 {[%clk 0:02:14.7]} 10... Be7 {[%clk 0:02:25.7]} 11. O-O {[%clk
0:02:09.7]} 11... cxd4 {[%clk 0:02:10.8]} 12. exd4 {[%clk 0:02:06.2]} 12... O-O
{[%clk 0:02:06.1]} 13. Ne5 {[%clk 0:01:58]} 13... Nxe5 {[%clk 0:02:00.5]} 14.
Bxe5 {[%clk 0:01:55.7]} 14... f6 {[%clk 0:01:44.7]} 15. Bh2 {[%clk 0:01:51.5]}
15... Bd6 {[%clk 0:01:44.9]} 16. Bxd6 {[%clk 0:01:10.7]} 16... Qxd6 {[%clk
0:01:41.4]} 17. Qd3 {[%clk 0:01:09.8]} 17... Nxd2 {[%clk 0:01:34.7]} 18. Qxd2
{[%clk 0:01:09.5]} 18... Rfe8 {[%clk 0:01:35.1]} 19. Rfe1 {[%clk 0:01:06.6]}
19... f4 {[%clk 0:01:10.4]} 20. Re2 {[%clk 0:00:58.3]} 20... Re4 {[%clk
0:01:01.9]} 21. f3 {[%clk 0:00:45]} 21... Rxe2 {[%clk 0:01:01.5]} 22. Qxe2
{[%clk 0:00:45.9]} 22... Qd7 {[%clk 0:00:59.5]} 23. Re1 {[%clk 0:00:44.9]} 23...
Kf7 {[%clk 0:00:57.6]} 24. Qd2 {[%clk 0:00:37.1]} 24... Qd6 {[%clk 0:00:48.6]}
25. Qd3 {[%clk 0:00:29.9]} 25... g6 {[%clk 0:00:45.4]} 26. Qb5 {[%clk
0:00:27.2]} 26... Qc6 {[%clk 0:00:38.6]} 27. Qb4 {[%clk 0:00:18.6]} 27... Re8
{[%clk 0:00:33.3]} 28. Rxe8 {[%clk 0:00:17.7]} 28... Kxe8 {[%clk 0:00:34.2]} 29.
b3 {[%clk 0:00:12.6]} 29... Kf7 {[%clk 0:00:31.9]} 30. c4 {[%clk 0:00:11.6]}
30... b6 {[%clk 0:00:28.6]} 31. Kf2 {[%clk 0:00:08.4]} 31... a5 {[%clk 0:00:27]}
32. Qb5 {[%clk 0:00:03.3]} 32... Qxb5 {[%clk 0:00:27.2]} 33. cxb5 {[%clk
0:00:04.2]} 33... Ke6 {[%clk 0:00:27.3]} 34. a3 {[%clk 0:00:03.5]} 34... f5
{[%clk 0:00:25.7]} 35. Ke2 {[%clk 0:00:03.6]} 35... g5 {[%clk 0:00:25.5]} 36.
Kd3 {[%clk 0:00:03.3]} 36... h5 {[%clk 0:00:25.3]} 37. Ke2 {[%clk 0:00:02]}
37... g4 {[%clk 0:00:21.8]} 38. hxg4 {[%clk 0:00:02.9]} 38... fxg4 {[%clk
0:00:21.7]} 39. Kf2 {[%clk 0:00:03.1]} 39... Kf5 {[%clk 0:00:20.2]} 40. Kg1
{[%clk 0:00:02.4]} 40... h4 {[%clk 0:00:18.9]} 41. Kh2 {[%clk 0:00:02.4]} 41...
h3 {[%clk 0:00:14.9]} 42. fxg4+ {[%clk 0:00:02.3]} 42... Kxg4 {[%clk 0:00:15.3]}
43. gxh3+ {[%clk 0:00:02.9]} 43... Kf3 {[%clk 0:00:14.7]} 44. h4 {[%clk
0:00:03.2]} 44... Ke2 {[%clk 0:00:15]} 45. h5 {[%clk 0:00:02.9]} 45... f3 {[%clk
0:00:15.7]} 46. h6 {[%clk 0:00:03]} 46... f2 {[%clk 0:00:16.2]} 47. h7 {[%clk
0:00:03.9]} 47... f1=Q {[%clk 0:00:16.4]} 48. h8=Q {[%clk 0:00:04.4]} 48... Qf2+
{[%clk 0:00:16.5]} 49. Kh3 {[%clk 0:00:03.5]} 49... Qf3+ {[%clk 0:00:16.8]} 50.
Kh2 {[%clk 0:00:02.9]} 50... Qf4+ {[%clk 0:00:14.6]} 51. Kh3 {[%clk 0:00:01.1]}
51... Qf3+ {[%clk 0:00:13.8]} 52. Kh2 {[%clk 0:00:01.7]} 52... Qxb3 {[%clk
0:00:13.4]} 53. Qe5+ {[%clk 0:00:01.3]} 53... Kd3 {[%clk 0:00:11.2]} 54. Qf5+
{[%clk 0:00:01.6]} 54... Kc4 {[%clk 0:00:11]} 55. Qc8+ {[%clk 0:00:01.3]} 55...
Kxb5 {[%clk 0:00:10.1]} 56. Qd7+ {[%clk 0:00:02]} 56... Kc4 {[%clk 0:00:09.9]}
57. Qc6+ {[%clk 0:00:02.3]} 57... Kxd4 {[%clk 0:00:09.3]} 58. Qf6+ {[%clk
0:00:02.9]} 58... Kd3 {[%clk 0:00:08.3]} 59. Qf3+ {[%clk 0:00:03.2]} 59... Kc2
{[%clk 0:00:08.5]} 60. Qe2+ {[%clk 0:00:03.5]} 60... Kb1 {[%clk 0:00:08.9]} 61.
Qe1+ {[%clk 0:00:03.5]} 61... Ka2 {[%clk 0:00:09]} 62. Qf2+ {[%clk 0:00:01.4]}
62... Qb2 {[%clk 0:00:09.2]} 63. Qxb2+ {[%clk 0:00:01.9]} 63... Kxb2 {[%clk
0:00:09.4]} 64. a4 {[%clk 0:00:02.8]} 64... Kb3 {[%clk 0:00:09.2]} 65. Kg3
{[%clk 0:00:03.7]} 65... Kxa4 {[%clk 0:00:09.6]} 66. Kf4 {[%clk 0:00:04.6]}
66... b5 {[%clk 0:00:10]} 67. Ke5 {[%clk 0:00:05.5]} 67... b4 {[%clk 0:00:10.6]}
68. Kxd5 {[%clk 0:00:06.4]} 0-1

[Event "Early-Titled-Tuesday-Blitz-April-23-2024"]
[Site "Chess.com"]
[Date "2024.04.23"]
[Round "2"]
[White "Hsper248"]
[Black "Zohid6"]
[Result "0-1"]
[WhiteElo "2629"]
[BlackElo "2947"]
[TimeControl "180+1"]
[EndTime "8:18:59 PDT"]
[Termination "Zohid6 won by resignation"]

1. e4 {[%clk 0:03:00.9]} 1... e5 {[%clk 0:02:59.6]} 2. Nf3 {[%clk 0:03:00.2]}
2... Nf6 {[%clk 0:02:58.8]} 3. Nxe5 {[%clk 0:02:57.2]} 3... d6 {[%clk
0:02:58.9]} 4. Nf3 {[%clk 0:02:57.7]} 4... Nxe4 {[%clk 0:02:59.1]} 5. Bd3 {[%clk
0:02:57.4]} 5... Nf6 {[%clk 0:02:58.5]} 6. O-O {[%clk 0:02:56.4]} 6... Be7
{[%clk 0:02:58.5]} 7. Re1 {[%clk 0:02:55.5]} 7... O-O {[%clk 0:02:58.2]} 8. c3
{[%clk 0:02:54.7]} 8... d5 {[%clk 0:02:58.2]} 9. Bc2 {[%clk 0:02:54.7]} 9... Bd6
{[%clk 0:02:58.5]} 10. d4 {[%clk 0:02:55]} 10... c6 {[%clk 0:02:58.1]} 11. h3
{[%clk 0:02:54.4]} 11... h6 {[%clk 0:02:57.3]} 12. Nbd2 {[%clk 0:02:53]} 12...
Be6 {[%clk 0:02:57.5]} 13. Nf1 {[%clk 0:02:52.8]} 13... Nbd7 {[%clk 0:02:57.6]}
14. Ng3 {[%clk 0:02:51.5]} 14... Qc7 {[%clk 0:02:55.2]} 15. Nf5 {[%clk
0:02:35.7]} 15... Bf4 {[%clk 0:02:47.3]} 16. Bxf4 {[%clk 0:02:13.7]} 16... Qxf4
{[%clk 0:02:48.2]} 17. Ne7+ {[%clk 0:02:13.9]} 17... Kh8 {[%clk 0:02:42.7]} 18.
Rxe6 {[%clk 0:02:14.4]} 18... Ne4 {[%clk 0:02:19]} 19. Bxe4 {[%clk 0:01:51.1]}
19... dxe4 {[%clk 0:02:19.9]} 20. Ne5 {[%clk 0:01:51.2]} 20... Qg5 {[%clk
0:02:09.3]} 21. Nxd7 {[%clk 0:01:19.9]} 21... fxe6 {[%clk 0:02:09.2]} 22. Nxf8
{[%clk 0:01:04.4]} 22... Rxf8 {[%clk 0:02:10.1]} 23. Qg4 {[%clk 0:00:52.3]}
23... Qxe7 {[%clk 0:02:09.3]} 24. Qxe4 {[%clk 0:00:52.4]} 24... Rf6 {[%clk
0:02:09.6]} 25. Re1 {[%clk 0:00:51.9]} 25... Qf7 {[%clk 0:02:09.6]} 26. Re2
{[%clk 0:00:51.7]} 26... Qh5 {[%clk 0:02:08.2]} 27. Qe5 {[%clk 0:00:49.6]} 27...
Qe8 {[%clk 0:02:06.3]} 28. a4 {[%clk 0:00:48.4]} 28... Kh7 {[%clk 0:02:04.4]}
29. a5 {[%clk 0:00:48.8]} 29... a6 {[%clk 0:02:04.7]} 30. b4 {[%clk 0:00:48.9]}
30... Qf8 {[%clk 0:02:02.6]} 31. f3 {[%clk 0:00:47.7]} 31... Qf7 {[%clk
0:02:02.1]} 32. Re3 {[%clk 0:00:47.9]} 32... Qd7 {[%clk 0:01:56.9]} 33. Re4
{[%clk 0:00:47.8]} 33... Qf7 {[%clk 0:01:57.1]} 34. Kf2 {[%clk 0:00:47.4]} 34...
Qg6 {[%clk 0:01:55.3]} 35. h4 {[%clk 0:00:44.6]} 35... Qf7 {[%clk 0:01:53.6]}
36. h5 {[%clk 0:00:44.6]} 36... Qd7 {[%clk 0:01:48.9]} 37. Rf4 {[%clk
0:00:42.2]} 37... Qf7 {[%clk 0:01:37.8]} 38. Ke3 {[%clk 0:00:41]} 38... Rxf4
{[%clk 0:01:34.8]} 39. Qxf4 {[%clk 0:00:40.7]} 39... Qxh5 {[%clk 0:01:35.3]} 40.
g4 {[%clk 0:00:30.5]} 40... Qh1 {[%clk 0:01:33.1]} 41. Qe4+ {[%clk 0:00:29.3]}
41... Kh8 {[%clk 0:01:32.8]} 42. Kf2 {[%clk 0:00:24.9]} 42... Qh2+ {[%clk
0:01:30.5]} 43. Kf1 {[%clk 0:00:24.5]} 43... Qh1+ {[%clk 0:01:30.6]} 44. Kf2
{[%clk 0:00:24.7]} 44... Qh2+ {[%clk 0:01:30.7]} 45. Ke1 {[%clk 0:00:24.8]}
45... Qb2 {[%clk 0:01:28.8]} 46. Qe3 {[%clk 0:00:22.4]} 46... Qa2 {[%clk
0:01:14.4]} 47. Kf1 {[%clk 0:00:22.7]} 47... Kg8 {[%clk 0:01:15.1]} 48. Kg1
{[%clk 0:00:22.8]} 48... Qd5 {[%clk 0:01:14.3]} 49. Kg2 {[%clk 0:00:22.4]} 49...
Qd6 {[%clk 0:01:10]} 50. Qe4 {[%clk 0:00:22.3]} 50... Kf7 {[%clk 0:01:10.3]} 51.
Qe3 {[%clk 0:00:20.4]} 51... Ke7 {[%clk 0:01:04.8]} 52. Qe4 {[%clk 0:00:19.6]}
52... Kd8 {[%clk 0:01:01.8]} 53. Qg6 {[%clk 0:00:19.6]} 53... Qe7 {[%clk
0:01:01.9]} 54. Qe4 {[%clk 0:00:19.6]} 54... Qf6 {[%clk 0:01:00.1]} 55. Kg3
{[%clk 0:00:20.2]} 55... Ke7 {[%clk 0:00:59.9]} 56. Qe3 {[%clk 0:00:19.6]} 56...
Kd7 {[%clk 0:00:53.3]} 57. Qe4 {[%clk 0:00:19.9]} 57... Qg5 {[%clk 0:00:50.3]}
58. f4 {[%clk 0:00:20.2]} 58... Qf6 {[%clk 0:00:50.1]} 59. Qe5 {[%clk
0:00:20.2]} 59... Qxe5 {[%clk 0:00:34.2]} 60. dxe5 {[%clk 0:00:18.8]} 60... g6
{[%clk 0:00:30.2]} 61. Kh4 {[%clk 0:00:17.6]} 61... c5 {[%clk 0:00:28.7]} 62.
bxc5 {[%clk 0:00:12.1]} 62... Kc6 {[%clk 0:00:23.9]} 63. f5 {[%clk 0:00:08.7]}
63... gxf5 {[%clk 0:00:23]} 64. gxf5 {[%clk 0:00:09.6]} 64... exf5 {[%clk
0:00:23.8]} 65. e6 {[%clk 0:00:10]} 65... Kc7 {[%clk 0:00:22.2]} 66. c4 {[%clk
0:00:10.1]} 66... Kd8 {[%clk 0:00:20.6]} 67. Kh5 {[%clk 0:00:09.9]} 67... Ke7
{[%clk 0:00:20.6]} 68. Kxh6 {[%clk 0:00:08.9]} 68... f4 {[%clk 0:00:20.5]} 69.
Kg5 {[%clk 0:00:09.8]} 69... f3 {[%clk 0:00:21.4]} 70. Kf5 {[%clk 0:00:10.3]}
70... f2 {[%clk 0:00:21.8]} 71. Ke5 {[%clk 0:00:11.2]} 71... f1=Q {[%clk
0:00:22.7]} 72. Kd5 {[%clk 0:00:12.1]} 72... Qd3+ {[%clk 0:00:22.5]} 0-1

[Event "Early-Titled-Tuesday-Blitz-April-23-2024"]
[Site "Chess.com"]
[Date "2024.04.23"]
[Round "2"]
[White "adotand"]
[Black "Thunderbolt135"]
[Result "0-1"]
[WhiteElo "2950"]
[BlackElo "2650"]
[TimeControl "180+1"]
[EndTime "8:19:02 PDT"]
[Termination "Thunderbolt135 won by resignation"]

1. d4 {[%clk 0:03:00.9]} 1... Nf6 {[%clk 0:03:00]} 2. c4 {[%clk 0:03:01.4]} 2...
e6 {[%clk 0:02:59.2]} 3. Nc3 {[%clk 0:03:02]} 3... d5 {[%clk 0:02:57.9]} 4. cxd5
{[%clk 0:03:01.5]} 4... exd5 {[%clk 0:02:58.8]} 5. Bg5 {[%clk 0:03:02]} 5... c6
{[%clk 0:02:58.4]} 6. e3 {[%clk 0:03:02.4]} 6... Be7 {[%clk 0:02:59]} 7. Bd3
{[%clk 0:03:02.5]} 7... Bg4 {[%clk 0:02:56.9]} 8. Qb3 {[%clk 0:03:00.2]} 8...
Qb6 {[%clk 0:02:55.4]} 9. h3 {[%clk 0:02:57.6]} 9... Bh5 {[%clk 0:02:51]} 10.
Nge2 {[%clk 0:02:53.9]} 10... Bg6 {[%clk 0:02:50.1]} 11. Bxg6 {[%clk 0:02:53.2]}
11... hxg6 {[%clk 0:02:51]} 12. Qc2 {[%clk 0:02:52.8]} 12... Nbd7 {[%clk
0:02:50.2]} 13. O-O {[%clk 0:02:44.7]} 13... O-O {[%clk 0:02:48.4]} 14. a3
{[%clk 0:02:44.6]} 14... a5 {[%clk 0:02:45.3]} 15. Bf4 {[%clk 0:02:38.4]} 15...
Rfe8 {[%clk 0:02:42.9]} 16. Rad1 {[%clk 0:02:37]} 16... Nf8 {[%clk 0:02:43]} 17.
Na4 {[%clk 0:02:30.1]} 17... Qd8 {[%clk 0:02:39.9]} 18. Qb3 {[%clk 0:02:27]}
18... b5 {[%clk 0:02:31.8]} 19. Nac3 {[%clk 0:02:25.3]} 19... Ne6 {[%clk
0:02:30.3]} 20. Bh2 {[%clk 0:02:25.5]} 20... a4 {[%clk 0:02:23.4]} 21. Qc2
{[%clk 0:02:25.6]} 21... Bd6 {[%clk 0:02:24]} 22. Bxd6 {[%clk 0:02:23.8]} 22...
Qxd6 {[%clk 0:02:24.9]} 23. Na2 {[%clk 0:02:24.5]} 23... Rac8 {[%clk 0:02:21.8]}
24. Nb4 {[%clk 0:02:24.4]} 24... Nd8 {[%clk 0:01:38.3]} 25. Nc1 {[%clk
0:02:19.5]} 25... Nb7 {[%clk 0:01:38.2]} 26. Ncd3 {[%clk 0:02:19.5]} 26... Na5
{[%clk 0:01:38.5]} 27. Nc5 {[%clk 0:02:16.2]} 27... Nc4 {[%clk 0:01:36.7]} 28.
Nbd3 {[%clk 0:02:04.5]} 28... g5 {[%clk 0:01:30.1]} 29. Qe2 {[%clk 0:01:57.4]}
29... g6 {[%clk 0:01:26.1]} 30. Qf3 {[%clk 0:01:32]} 30... Kg7 {[%clk
0:01:25.9]} 31. g4 {[%clk 0:01:17.3]} 31... Rh8 {[%clk 0:01:15.6]} 32. Kg2
{[%clk 0:01:17.7]} 32... Rce8 {[%clk 0:01:16]} 33. Rh1 {[%clk 0:01:17.9]} 33...
Ne4 {[%clk 0:01:14.6]} 34. Rde1 {[%clk 0:01:12]} 34... f5 {[%clk 0:00:34.2]} 35.
gxf5 {[%clk 0:01:06.1]} 35... Rhf8 {[%clk 0:00:34.8]} 36. Qe2 {[%clk 0:01:00.4]}
36... Rxf5 {[%clk 0:00:25.1]} 37. Qg4 {[%clk 0:00:55.7]} 37... Ncd2 {[%clk
0:00:15.3]} 38. Re2 {[%clk 0:00:51.9]} 38... Ref8 {[%clk 0:00:13.9]} 39. Nxe4
{[%clk 0:00:35.8]} 39... Nxe4 {[%clk 0:00:12.7]} 40. Rf1 {[%clk 0:00:33.7]}
40... Rf3 {[%clk 0:00:11.5]} 41. Ne5 {[%clk 0:00:31.7]} 41... R3f5 {[%clk
0:00:09]} 42. f3 {[%clk 0:00:31.3]} 42... Nf6 {[%clk 0:00:09.4]} 43. Qg3 {[%clk
0:00:31.5]} 43... Nh5 {[%clk 0:00:10]} 44. Qh2 {[%clk 0:00:32.1]} 44... Qf6
{[%clk 0:00:10.3]} 45. Ref2 {[%clk 0:00:31.2]} 45... Qe6 {[%clk 0:00:08.3]} 46.
Rc1 {[%clk 0:00:31.1]} 46... Rc8 {[%clk 0:00:07.3]} 47. Rc3 {[%clk 0:00:29.7]}
47... c5 {[%clk 0:00:05.8]} 48. Rfc2 {[%clk 0:00:29.7]} 48... c4 {[%clk
0:00:06.2]} 49. Re2 {[%clk 0:00:29.8]} 49... Rcf8 {[%clk 0:00:06.7]} 50. Kf2
{[%clk 0:00:29.2]} 50... R5f6 {[%clk 0:00:06.4]} 51. Ke1 {[%clk 0:00:29.7]}
51... Rxf3 {[%clk 0:00:05.6]} 52. Nxf3 {[%clk 0:00:29.4]} 52... Rxf3 {[%clk
0:00:06.5]} 53. Kd2 {[%clk 0:00:29.6]} 53... Nf6 {[%clk 0:00:06.3]} 54. Rc1
{[%clk 0:00:28]} 54... Ne4+ {[%clk 0:00:06.9]} 55. Kc2 {[%clk 0:00:28.7]} 55...
Qf5 {[%clk 0:00:07.8]} 56. Qe5+ {[%clk 0:00:25.4]} 56... Qxe5 {[%clk 0:00:07]}
57. dxe5 {[%clk 0:00:26.3]} 57... Kf7 {[%clk 0:00:07.5]} 58. Rg1 {[%clk
0:00:23.1]} 58... Ke6 {[%clk 0:00:07.7]} 59. h4 {[%clk 0:00:23.8]} 59... gxh4
{[%clk 0:00:07.2]} 60. Rxg6+ {[%clk 0:00:24.6]} 60... Kxe5 {[%clk 0:00:07.9]}
61. Rh6 {[%clk 0:00:25.5]} 61... h3 {[%clk 0:00:07.5]} 62. Rh2 {[%clk 0:00:26]}
62... Ng5 {[%clk 0:00:08.2]} 63. Kc3 {[%clk 0:00:24.4]} 63... Rxe3+ {[%clk
0:00:08.1]} 64. Kb4 {[%clk 0:00:25.2]} 64... Rb3+ {[%clk 0:00:07.7]} 65. Kc5
{[%clk 0:00:25.9]} 65... d4 {[%clk 0:00:07.4]} 66. Rf2 {[%clk 0:00:25.1]} 66...
Ne4+ {[%clk 0:00:05.3]} 0-1

[Event "Early-Titled-Tuesday-Blitz-April-23-2024"]
[Site "Chess.com"]
[Date "2024.04.23"]
[Round "2"]
[White "YurasovMat-2012"]
[Black "BardArtem"]
[Result "0-1"]
[WhiteElo "2598"]
[BlackElo "2865"]
[TimeControl "180+1"]
[EndTime "8:19:07 PDT"]
[Termination "BardArtem won on time"]

1. e4 {[%clk 0:03:00.9]} 1... c6 {[%clk 0:02:56.5]} 2. Nf3 {[%clk 0:02:58.9]}
2... d5 {[%clk 0:02:56.4]} 3. Nc3 {[%clk 0:02:58.6]} 3... Bg4 {[%clk 0:02:46.7]}
4. h3 {[%clk 0:02:55.7]} 4... Bxf3 {[%clk 0:02:46.7]} 5. Qxf3 {[%clk 0:02:55.1]}
5... e6 {[%clk 0:02:46.8]} 6. g3 {[%clk 0:02:51.2]} 6... Nf6 {[%clk 0:02:44.8]}
7. Bg2 {[%clk 0:02:50.6]} 7... Nxe4 {[%clk 0:02:45.1]} 8. Nxe4 {[%clk
0:02:50.1]} 8... dxe4 {[%clk 0:02:46]} 9. Qxe4 {[%clk 0:02:50.4]} 9... Qd5
{[%clk 0:02:46.6]} 10. O-O {[%clk 0:02:45.6]} 10... Qxe4 {[%clk 0:02:46.9]} 11.
Bxe4 {[%clk 0:02:45.3]} 11... Nd7 {[%clk 0:02:47.8]} 12. d4 {[%clk 0:02:45.2]}
12... Be7 {[%clk 0:02:46.9]} 13. c4 {[%clk 0:02:40.8]} 13... O-O-O {[%clk
0:02:45]} 14. Be3 {[%clk 0:02:38.7]} 14... Bf6 {[%clk 0:02:36.7]} 15. Rad1
{[%clk 0:02:26.7]} 15... Rhe8 {[%clk 0:02:33.1]} 16. f4 {[%clk 0:02:23]} 16...
Nb6 {[%clk 0:02:28.4]} 17. b3 {[%clk 0:02:21.8]} 17... Rd7 {[%clk 0:02:27.8]}
18. Rd2 {[%clk 0:02:20.6]} 18... Red8 {[%clk 0:02:24.8]} 19. Rfd1 {[%clk
0:02:19.1]} 19... g6 {[%clk 0:02:17.9]} 20. Kg2 {[%clk 0:01:48.5]} 20... Kb8
{[%clk 0:01:59.4]} 21. Bf3 {[%clk 0:01:38.4]} 21... Nc8 {[%clk 0:01:34]} 22. g4
{[%clk 0:01:27.4]} 22... Ne7 {[%clk 0:01:29.8]} 23. Bf2 {[%clk 0:01:10.5]} 23...
h6 {[%clk 0:01:27.7]} 24. h4 {[%clk 0:01:02.2]} 24... h5 {[%clk 0:01:13.2]} 25.
gxh5 {[%clk 0:00:57.4]} 25... gxh5 {[%clk 0:01:14.1]} 26. Bxh5 {[%clk
0:00:53.4]} 26... Nf5 {[%clk 0:01:14.4]} 27. d5 {[%clk 0:00:51.2]} 27... Bxh4
{[%clk 0:00:51.2]} 28. Bxh4 {[%clk 0:00:20.1]} 28... Nxh4+ {[%clk 0:00:52.1]}
29. Kg3 {[%clk 0:00:18.6]} 29... Nf5+ {[%clk 0:00:52.3]} 30. Kf3 {[%clk
0:00:17.2]} 30... cxd5 {[%clk 0:00:47.9]} 31. cxd5 {[%clk 0:00:16.7]} 31... Rxd5
{[%clk 0:00:46.1]} 32. Rxd5 {[%clk 0:00:16.2]} 32... exd5 {[%clk 0:00:30]} 33.
Bxf7 {[%clk 0:00:15.2]} 33... d4 {[%clk 0:00:28.2]} 34. Be6 {[%clk 0:00:13.7]}
34... Ne7 {[%clk 0:00:21.7]} 35. Ke4 {[%clk 0:00:13.2]} 35... Nc6 {[%clk
0:00:20.3]} 36. f5 {[%clk 0:00:13.4]} 36... Kc7 {[%clk 0:00:20.4]} 37. a3 {[%clk
0:00:06.7]} 37... Rh8 {[%clk 0:00:19.7]} 38. f6 {[%clk 0:00:05]} 38... Kd6
{[%clk 0:00:18.3]} 39. Bc4 {[%clk 0:00:03.6]} 39... Rh5 {[%clk 0:00:13.3]} 40.
b4 {[%clk 0:00:03]} 40... a6 {[%clk 0:00:13.1]} 41. Bd3 {[%clk 0:00:02.8]} 41...
Re5+ {[%clk 0:00:10.4]} 42. Kf4 {[%clk 0:00:03]} 42... Ke6 {[%clk 0:00:11.2]}
43. Rf1 {[%clk 0:00:01.8]} 43... Kxf6 {[%clk 0:00:11.3]} 44. Kg4+ {[%clk
0:00:02.4]} 44... Ke6 {[%clk 0:00:11.2]} 45. Bc4+ {[%clk 0:00:02.9]} 45... Kd6
{[%clk 0:00:11.1]} 46. Rf6+ {[%clk 0:00:03]} 46... Kc7 {[%clk 0:00:11.9]} 47.
Rf7+ {[%clk 0:00:03.3]} 47... Kb6 {[%clk 0:00:11.9]} 48. Kf4 {[%clk 0:00:03.8]}
48... Re3 {[%clk 0:00:11.5]} 49. a4 {[%clk 0:00:01.8]} 49... Nxb4 {[%clk
0:00:11.1]} 50. Rf6+ {[%clk 0:00:01.8]} 50... Nc6 {[%clk 0:00:11.5]} 51. Bd5
{[%clk 0:00:01.9]} 51... Re1 {[%clk 0:00:11.8]} 52. Rd6 {[%clk 0:00:01.8]} 52...
Kc5 {[%clk 0:00:11.7]} 53. Rd7 {[%clk 0:00:02.4]} 53... b5 {[%clk 0:00:06.9]}
54. axb5 {[%clk 0:00:02.5]} 54... axb5 {[%clk 0:00:07.8]} 55. Be4 {[%clk
0:00:02.6]} 55... Rf1+ {[%clk 0:00:07.1]} 56. Kg3 {[%clk 0:00:03]} 56... Nb4
{[%clk 0:00:05.5]} 57. Rc7+ {[%clk 0:00:02.4]} 57... Kd6 {[%clk 0:00:05.8]} 58.
Rb7 {[%clk 0:00:02.8]} 58... Kc5 {[%clk 0:00:05.2]} 59. Rc7+ {[%clk 0:00:03]}
59... Kb6 {[%clk 0:00:05.9]} 60. Rb7+ {[%clk 0:00:03.4]} 60... Ka6 {[%clk
0:00:05.8]} 61. Rd7 {[%clk 0:00:02.6]} 61... d3 {[%clk 0:00:04.4]} 62. Bxd3
{[%clk 0:00:01.5]} 62... Nxd3 {[%clk 0:00:05.3]} 63. Rxd3 {[%clk 0:00:01.3]}
63... Ka5 {[%clk 0:00:05.4]} 64. Kg2 {[%clk 0:00:01.8]} 64... Rf8 {[%clk
0:00:05.4]} 65. Rd1 {[%clk 0:00:01.8]} 65... b4 {[%clk 0:00:05.3]} 0-1